fUSD/lending_fUSD_20260626
["ID","MTS","AMOUNT","RATE_DAILY","PERIOD"]
[426447241,1782403730000,-2214.27028059,0.00013,2]
[426447240,1782403730000,-3211.86334473,0.00013,2]
[426447239,1782403730000,-312.42201415,0.000125,2]
[426447268,1782403834000,-600.0,0.000143,2]
[426447265,1782403834000,-250.0,0.0001375,2]
[426447266,1782403834000,-250.0,0.00014,2]
[426447264,1782403834000,-193.0,0.0001375,2]
[426447263,1782403834000,-600.0,0.0001375,2]
[426447260,1782403834000,-500.0,0.00013539,2]
[426447267,1782403834000,-600.0,0.000143,2]
[426447286,1782403834000,-1640.68615507,0.00014907,2]
[426447259,1782403834000,-500.0,0.00013539,2]
[426447257,1782403834000,-359.31730471,0.0001305,2]
[426447258,1782403834000,-1000.0,0.000135,2]
[426447254,1782403834000,-271.52780425,0.00013,2]
[426447255,1782403834000,-7028.85048624,0.00013,2]
[426447256,1782403834000,-5074.99454422,0.0001305,2]
[426447262,1782403834000,-600.0,0.0001375,2]
[426447261,1782403834000,-600.0,0.0001375,2]
[426447269,1782403834000,-150.0,0.00014318,2]
[426447271,1782403834000,-152.0,0.00014404,2]
[426447284,1782403834000,-453.1072499,0.000149,2]
[426447283,1782403834000,-539.23874046,0.000149,2]
[426447287,1782403834000,-388.8323745,0.00014907,2]
[426447285,1782403834000,-5.34022339,0.00014907,2]
[426447281,1782403834000,-314.46,0.000149,2]
[426447279,1782403834000,-588.11482156,0.000149,2]
[426447270,1782403834000,-152.0,0.00014404,2]
[426447280,1782403834000,-574.81083747,0.000149,2]
[426447277,1782403834000,-186.99,0.00014757,2]
[426447273,1782403834000,-160.0,0.00014418,2]
[426447274,1782403834000,-384.06368786,0.00014504,2]
[426447276,1782403834000,-1164.67,0.00014641,2]
[426447272,1782403834000,-216.45114417,0.00014418,2]
[426447275,1782403834000,-500.0,0.00014504,2]
[426447278,1782403834000,-8261.05815061,0.000149,2]
[426447311,1782403837000,-1293.83208398,0.00014907,2]
[426447312,1782403837000,-500.0,0.00014997,2]
[426447315,1782403837000,-500.0,0.00014997,2]
[426447313,1782403837000,-500.0,0.00014997,2]
[426447314,1782403837000,-500.0,0.00014997,2]
[426447329,1782403838000,-69695.97231121,0.00015,2]
[426447316,1782403838000,-500.0,0.00014997,2]
[426447318,1782403838000,-500.0,0.00014999,2]
[426447328,1782403838000,-292250.41488182,0.00015,2]
[426447317,1782403838000,-500.0,0.00014997,2]
[426447322,1782403838000,-500.0,0.00014999,2]
[426447326,1782403838000,-257.33135969,0.00014999,2]
[426447323,1782403838000,-500.0,0.00014999,2]
[426447321,1782403838000,-500.0,0.00014999,2]
[426447320,1782403838000,-500.0,0.00014999,2]
[426447319,1782403838000,-500.0,0.00014999,2]
[426447324,1782403838000,-643.09,0.00014999,2]
[426447325,1782403838000,-643.09,0.00014999,2]
[426447327,1782403838000,-180.13195178,0.00014999,2]
[426447431,1782403840000,-34112.43444024,0.00015,2]
[426447433,1782403840000,-1926.11158493,0.00015,2]
[426447432,1782403840000,-42938.64,0.00015,2]
[426447452,1782403842000,-561.59219213,0.000149,2]
[426447455,1782403843000,-1389.05548671,0.00015,2]
[426447454,1782403843000,-1657.44611356,0.000149,2]
[426447453,1782403843000,-9881.49469431,0.000149,2]
[426447456,1782403843000,-31.44816661,0.00015,2]
[426447476,1782403846000,-166.66,0.00015849,2]
[426447468,1782403846000,-166.66,0.00015209,2]
[426447466,1782403846000,-1164.67,0.00015007,2]
[426447472,1782403846000,-1164.67,0.00015373,2]
[426447475,1782403846000,-1164.67,0.00015739,2]
[426447471,1782403846000,-150.99,0.0001531,2]
[426447474,1782403846000,-166.66,0.00015529,2]
[426447470,1782403846000,-6336.62,0.00015292,2]
[426447469,1782403846000,-1195.83215069,0.00015273,2]
[426447465,1782403846000,-99168.43598439,0.00015,2]
[426447464,1782403846000,-951.0,0.00015,2]
[426447473,1782403846000,-166.66,0.00015403,2]
[426447467,1782403846000,-4104.15717728,0.00015109,2]
[426447480,1782403846000,-150.0,0.00016009,2]
[426447477,1782403846000,-12199.2,0.00015935,2]
[426447492,1782403846000,-1671.81938376,0.00017208,2]
[426447491,1782403846000,-1457.29046683,0.00017208,2]
[426447479,1782403846000,-187.82,0.00016,14]
[426447490,1782403846000,-975.04732668,0.00017208,2]
[426447489,1782403846000,-250.0,0.00017177,2]
[426447487,1782403846000,-41.70732668,0.0001681,2]
[426447488,1782403846000,-124.95267332,0.0001681,2]
[426447485,1782403846000,-593.81795175,0.00016438,2]
[426447483,1782403846000,-3328.69083692,0.00016217,2]
[426447484,1782403846000,-427.44,0.00016422,2]
[426447486,1782403846000,-166.66,0.0001649,2]
[426447481,1782403846000,-1164.67,0.00016105,2]
[426447478,1782403846000,-3312.86,0.00015962,2]
[426447482,1782403846000,-166.66,0.00016169,2]
[426447493,1782403846000,-11.45259737,0.00017528,2]
[426447507,1782404031000,341.95,0.00030421,120]
[426447506,1782404031000,341.95,0.00027886,120]
[426447512,1782404386000,546.9353059,0.00031506,120]
[426447518,1782404779000,-151.0,0.0001421,2]
[426447517,1782404779000,-151.0,0.0001421,2]
[426447527,1782404780000,-151.0,0.0001421,2]
[426447530,1782404780000,-153.0,0.0001421,2]
[426447529,1782404780000,-153.0,0.0001421,2]
[426447528,1782404780000,-150.0,0.0001421,2]
[426447526,1782404780000,-153.0,0.0001421,2]
[426447531,1782404780000,-151.0,0.0001421,2]
[426447523,1782404780000,-151.0,0.0001421,2]
[426447524,1782404780000,-152.0,0.0001421,2]
[426447522,1782404780000,-151.0,0.0001421,2]
[426447521,1782404780000,-151.0,0.0001421,2]
[426447519,1782404780000,-151.0,0.0001421,2]
[426447520,1782404780000,-151.0,0.0001421,2]
[426447535,1782404780000,-151.0,0.00014504,2]
[426447525,1782404780000,-151.0,0.0001421,2]
[426447533,1782404780000,-150.0,0.0001421,2]
[426447532,1782404780000,-151.0,0.0001421,2]
[426447534,1782404780000,-150.0,0.0001421,2]
[426447548,1782404780000,-153.0,0.00014504,2]
[426447550,1782404780000,-15.0,0.00014504,2]
[426447549,1782404780000,-150.0,0.00014504,2]
[426447544,1782404780000,-150.0,0.00014504,2]
[426447547,1782404780000,-152.0,0.00014504,2]
[426447546,1782404780000,-150.0,0.00014504,2]
[426447536,1782404780000,-151.0,0.00014504,2]
[426447545,1782404780000,-153.0,0.00014504,2]
[426447543,1782404780000,-150.0,0.00014504,2]
[426447541,1782404780000,-150.0,0.00014504,2]
[426447540,1782404780000,-151.0,0.00014504,2]
[426447539,1782404780000,-151.0,0.00014504,2]
[426447538,1782404780000,-150.0,0.00014504,2]
[426447537,1782404780000,-151.0,0.00014504,2]
[426447542,1782404780000,-150.0,0.00014504,2]
[426447552,1782404781000,-151.0,0.00014504,2]
[426447554,1782404781000,-151.0,0.00014504,2]
[426447551,1782404781000,-136.0,0.00014504,2]
[426447555,1782404781000,-153.0,0.00014504,2]
[426447556,1782404781000,-153.0,0.00014504,2]
[426447553,1782404781000,-153.0,0.00014504,2]
[426447557,1782404782000,-152.0,0.00014504,2]
[426447559,1782404782000,-151.0,0.00014504,2]
[426447558,1782404782000,-150.0,0.00014504,2]
[426447560,1782404782000,-151.0,0.00014504,2]
[426447562,1782404782000,-150.0,0.00014504,2]
[426447561,1782404782000,-151.0,0.00014504,2]
[426447564,1782404782000,-152.0,0.00014504,2]
[426447565,1782404782000,-151.0,0.00014504,2]
[426447566,1782404782000,-150.0,0.00014504,2]
[426447567,1782404782000,-152.0,0.00014504,2]
[426447568,1782404782000,-2441.0,0.00014705,2]
[426447569,1782404782000,-637.11788297,0.00014705,2]
[426447570,1782404782000,-171.98888318,0.00014707,2]
[426447571,1782404782000,-904.35575673,0.0001471,2]
[426447572,1782404782000,-3286.53747712,0.0001471,2]
[426447563,1782404782000,-152.0,0.00014504,2]
[426447576,1782404783000,-151.0,0.00014799,2]
[426447575,1782404783000,-179.17169087,0.0001479,2]
[426447573,1782404783000,-1415.67649303,0.0001471,2]
[426447574,1782404783000,-703.49967532,0.0001479,2]
[426447579,1782404783000,-150.0,0.00014799,2]
[426447578,1782404783000,-150.0,0.00014799,2]
[426447581,1782404783000,-500.0,0.00014799,2]
[426447580,1782404783000,-500.0,0.00014799,2]
[426447577,1782404783000,-151.0,0.00014799,2]
[426447587,1782404784000,-589.5,0.00014799,2]
[426447586,1782404784000,-584.84510421,0.00014799,2]
[426447585,1782404784000,-400.34785922,0.00014799,2]
[426447583,1782404784000,-500.0,0.00014799,2]
[426447582,1782404784000,-500.0,0.00014799,2]
[426447584,1782404784000,-99.65214078,0.00014799,2]
[426447590,1782404785000,-589.5,0.00014799,2]
[426447591,1782404785000,-589.5,0.00014799,2]
[426447588,1782404785000,-589.5,0.00014799,2]
[426447592,1782404785000,-589.5,0.00014799,2]
[426447593,1782404785000,-477.80703657,0.00014799,2]
[426447589,1782404785000,-589.5,0.00014799,2]
[426447596,1782404814000,-2500.0,0.000147,2]
[426447597,1782404814000,-2199.0,0.00014711,2]
[426447595,1782404814000,-151.0,0.00014441,2]
[426447594,1782404814000,-150.0,0.0001421,2]
[426447599,1782404815000,-1429.64396343,0.00014799,2]
[426447598,1782404815000,-462.80740988,0.00014711,2]
[426447601,1782404815000,-666.0,0.00014799,2]
[426447603,1782404815000,-666.0,0.00014799,2]
[426447602,1782404815000,-300.0,0.00014799,2]
[426447604,1782404815000,-890.0,0.000148,2]
[426447605,1782404815000,-421.11462669,0.000148,2]
[426447600,1782404815000,-164.434,0.00014799,2]
[426447608,1782404816000,-918.0,0.000148,2]
[426447607,1782404816000,-909.0,0.000148,2]
[426447606,1782404816000,-489.88537331,0.000148,2]
[426447610,1782404816000,-891.0,0.000148,2]
[426447609,1782404816000,-898.0,0.000148,2]
[426447611,1782404816000,-894.11462669,0.000148,2]
[426447615,1782404817000,-398.50130913,0.000148,2]
[426447617,1782404817000,-3380.61331756,0.000148,2]
[426447616,1782404817000,-151.0,0.000148,2]
[426447612,1782404817000,-150.0,0.00014268,2]
[426447614,1782404817000,-915.0,0.000148,2]
[426447613,1782404817000,-4.88537331,0.000148,2]
[426447618,1782404818000,-5000.0,0.000148,2]
[426447619,1782404821000,3791.0,0.00031507,120]
[426447620,1782405000000,2500000.0,0.00031506,120]
[426447642,1782405033000,-117.6337051,0.00014698,2]
[426447637,1782405033000,-158.13181081,0.00014698,2]
[426447643,1782405033000,-382.3662949,0.00014698,2]
[426447644,1782405033000,-500.0,0.00014698,2]
[426447645,1782405033000,-500.0,0.00014698,2]
[426447640,1782405033000,-75.40958772,0.00014698,2]
[426447639,1782405033000,-424.59041228,0.00014698,2]
[426447646,1782405033000,-119.48648278,0.00014698,2]
[426447638,1782405033000,-500.0,0.00014698,2]
[426447631,1782405033000,-153.0,0.00014667,2]
[426447632,1782405033000,-151.0,0.00014698,2]
[426447630,1782405033000,-166.66,0.00014657,2]
[426447636,1782405033000,-341.86818919,0.00014698,2]
[426447634,1782405033000,-589.74695137,0.00014698,2]
[426447629,1782405033000,-2693.35314759,0.00014599,2]
[426447635,1782405033000,-506.68581359,0.00014698,2]
[426447626,1782405033000,-251.11,0.00014552,2]
[426447628,1782405033000,-150.0,0.00014599,2]
[426447627,1782405033000,-151.0,0.00014599,2]
[426447647,1782405033000,-30.55185229,0.00014698,2]
[426447633,1782405033000,-152.0,0.00014698,2]
[426447648,1782405033000,-500.0,0.00014698,2]
[426447641,1782405033000,-500.0,0.00014698,2]
[426447658,1782405033000,-500.0,0.00014698,2]
[426447673,1782405033000,-6510.50152327,0.00014699,2]
[426447674,1782405033000,-343.29292514,0.00014699,2]
[426447670,1782405033000,-500.0,0.00014698,2]
[426447649,1782405033000,-500.0,0.00014698,2]
[426447664,1782405033000,-500.0,0.00014698,2]
[426447665,1782405033000,-500.0,0.00014698,2]
[426447668,1782405033000,-500.0,0.00014698,2]
[426447672,1782405033000,-500.0,0.00014698,2]
[426447661,1782405033000,-500.0,0.00014698,2]
[426447671,1782405033000,-500.0,0.00014698,2]
[426447662,1782405033000,-500.0,0.00014698,2]
[426447666,1782405033000,-500.0,0.00014698,2]
[426447663,1782405033000,-500.0,0.00014698,2]
[426447656,1782405033000,-468.36179744,0.00014698,2]
[426447657,1782405033000,-500.0,0.00014698,2]
[426447650,1782405033000,-213.10988256,0.00014698,2]
[426447651,1782405033000,-286.89011744,0.00014698,2]
[426447652,1782405033000,-163.10988256,0.00014698,2]
[426447659,1782405033000,-500.0,0.00014698,2]
[426447653,1782405033000,-336.89011744,0.00014698,2]
[426447654,1782405033000,-500.0,0.00014698,2]
[426447655,1782405033000,-31.63820256,0.00014698,2]
[426447660,1782405033000,-500.0,0.00014698,2]
[426447681,1782405038000,-1865.91021645,0.00014699,2]
[426447680,1782405038000,-468.99978355,0.00014689,2]
[426447683,1782405038000,-2755.86241437,0.00014699,2]
[426447682,1782405038000,-2074.80986574,0.00014699,2]
[426447890,1782405040000,-3654.84871444,0.00014699,2]
[426447875,1782405040000,-3374.85795328,0.00014699,2]
[426447905,1782405041000,-0.21504238,0.00014699,2]
[426447919,1782405049000,-547.26843466,0.00014699,2]
[426447918,1782405049000,-111146.88310519,0.00014699,2]
[426447917,1782405049000,-1559.03834125,0.00014699,2]
[426447915,1782405049000,-928.81147831,0.00014699,2]
[426447916,1782405049000,-696.40372243,0.00014699,2]
[426447929,1782405076000,226.8983606,0.00031506,120]
[426447932,1782405183000,-151.0,0.0001377,2]
[426447933,1782405183000,-151.0,0.0001377,2]
[426447934,1782405183000,-151.0,0.0001377,2]
[426447937,1782405183000,-152.0,0.00014,2]
[426447936,1782405183000,-150.0,0.00014,2]
[426447938,1782405183000,-152.0,0.00014,2]
[426447935,1782405183000,-250.0,0.00014,2]
[426447939,1782405190000,-151.0,0.0001377,2]
[426447942,1782405375000,1155.14,0.00023,30]
[426447945,1782405482000,-151.0,0.00014259,2]
[426447943,1782405482000,-150.0,0.00014259,2]
[426447944,1782405482000,-151.0,0.00014259,2]
[426447947,1782405483000,-150.0,0.00014259,2]
[426447946,1782405483000,-151.0,0.00014259,2]
[426447949,1782405483000,-151.0,0.00014259,2]
[426447948,1782405483000,-150.0,0.00014259,2]
[426447953,1782405483000,-153.0,0.00014259,2]
[426447950,1782405483000,-152.0,0.00014259,2]
[426447952,1782405483000,-152.0,0.00014259,2]
[426447951,1782405483000,-152.0,0.00014259,2]
[426447954,1782405483000,-150.0,0.00014259,2]
[426447955,1782405483000,-152.0,0.00014259,2]
[426447956,1782405483000,-1000.0,0.00014259,2]
[426447958,1782405483000,-152.0,0.00014405,2]
[426447959,1782405483000,-152.0,0.00014405,2]
[426447960,1782405483000,-151.0,0.00014405,2]
[426447961,1782405483000,-106.565,0.00014405,2]
[426447957,1782405483000,-164.435,0.00014405,2]
[426447963,1782405492000,-46.435,0.00014405,2]
[426447964,1782405492000,-1525.96,0.00014405,2]
[426447962,1782405492000,-151.0,0.00014259,2]
[426447966,1782405501000,-3126.605,0.00014599,2]
[426447965,1782405501000,-151.0,0.00014599,2]
[426447973,1782405519000,-211.08952447,0.00037321,120]
[426447967,1782405519000,-39.94040235,0.00037321,120]
[426447968,1782405519000,-181.93464636,0.00037321,120]
[426447970,1782405519000,-231.60712503,0.00037321,120]
[426447969,1782405519000,-507.36510076,0.00037321,120]
[426447972,1782405519000,-302.55901813,0.00037321,120]
[426447971,1782405519000,-473.65067225,0.00037321,120]
[426447975,1782405519000,-500.0,0.00037321,120]
[426447979,1782405519000,-500.0,0.00037321,120]
[426447976,1782405519000,-500.0,0.00037321,120]
[426447978,1782405519000,-393.65634929,0.00037321,120]
[426447977,1782405519000,-500.0,0.00037321,120]
[426447984,1782405519000,-500.0,0.00037321,120]
[426447980,1782405519000,-500.0,0.00037321,120]
[426447982,1782405519000,-427.34848296,0.00037321,120]
[426447981,1782405519000,-500.0,0.00037321,120]
[426447983,1782405519000,-598.12568602,0.00037321,120]
[426447974,1782405519000,-500.0,0.00037321,120]
[426448000,1782405520000,-500.0,0.00037321,120]
[426447998,1782405520000,-174.12877994,0.00037321,120]
[426447996,1782405520000,-500.0,0.00037321,120]
[426447995,1782405520000,-500.0,0.00037321,120]
[426447993,1782405520000,-500.0,0.00037321,120]
[426447994,1782405520000,-500.0,0.00037321,120]
[426447991,1782405520000,-500.0,0.00037321,120]
[426447988,1782405520000,-500.0,0.00037321,120]
[426447989,1782405520000,-217.57882585,0.00037321,120]
[426447990,1782405520000,-500.0,0.00037321,120]
[426447999,1782405520000,-500.0,0.00037321,120]
[426447986,1782405520000,-332.96759973,0.00037321,120]
[426447987,1782405520000,-203.71273318,0.00037321,120]
[426447985,1782405520000,-568.04881403,0.00037321,120]
[426447992,1782405520000,-500.0,0.00037321,120]
[426448001,1782405520000,-307.1256432,0.00037321,120]
[426447997,1782405520000,-500.0,0.00037321,120]
[426448002,1782405520000,-321.51601525,0.00037321,120]
[426448003,1782405520000,-500.0,0.00037321,120]
[426448018,1782405520000,-538.5,0.00037321,120]
[426448016,1782405520000,-500.0,0.00037321,120]
[426448017,1782405520000,-299.00046121,0.00037321,120]
[426448015,1782405520000,-538.5,0.00037321,120]
[426448013,1782405520000,-538.5,0.00037321,120]
[426448014,1782405520000,-500.0,0.00037321,120]
[426448012,1782405520000,-538.5,0.00037321,120]
[426448019,1782405520000,-500.0,0.00037321,120]
[426448010,1782405520000,-538.5,0.00037321,120]
[426448009,1782405520000,-538.5,0.00037321,120]
[426448008,1782405520000,-585.23362165,0.00037321,120]
[426448007,1782405520000,-538.5,0.00037321,120]
[426448006,1782405520000,-538.5,0.00037321,120]
[426448005,1782405520000,-538.5,0.00037321,120]
[426448004,1782405520000,-228.62424133,0.00037321,120]
[426448011,1782405520000,-538.5,0.00037321,120]
[426448036,1782405521000,-264.31979981,0.00037321,120]
[426448034,1782405521000,-538.5,0.00037321,120]
[426448035,1782405521000,-538.59111063,0.00037321,120]
[426448033,1782405521000,-538.5,0.00037321,120]
[426448032,1782405521000,-538.5,0.00037321,120]
[426448030,1782405521000,-538.5,0.00037321,120]
[426448027,1782405521000,-538.5,0.00037321,120]
[426448029,1782405521000,-538.5,0.00037321,120]
[426448024,1782405521000,-217.57657501,0.00037321,120]
[426448025,1782405521000,-538.5,0.00037321,120]
[426448026,1782405521000,-538.5,0.00037321,120]
[426448023,1782405521000,-538.5,0.00037321,120]
[426448022,1782405521000,-538.5,0.00037321,120]
[426448020,1782405521000,-538.5,0.00037321,120]
[426448021,1782405521000,-576.68742842,0.00037321,120]
[426448037,1782405521000,-310.78667704,0.00037321,120]
[426448028,1782405521000,-538.5,0.00037321,120]
[426448039,1782405521000,-518.94733064,0.00037321,120]
[426448031,1782405521000,-538.5,0.00037321,120]
[426448040,1782405521000,-500.0,0.00037321,120]
[426448038,1782405521000,-239.11441216,0.00037321,120]
[426448056,1782405521000,-500.0,0.00037321,120]
[426448055,1782405521000,-500.0,0.00037321,120]
[426448054,1782405521000,-500.0,0.00037321,120]
[426448053,1782405521000,-299.10880914,0.00037321,120]
[426448052,1782405521000,-500.0,0.00037321,120]
[426448049,1782405521000,-500.0,0.00037321,120]
[426448050,1782405521000,-500.0,0.00037321,120]
[426448051,1782405521000,-500.0,0.00037321,120]
[426448048,1782405521000,-500.0,0.00037321,120]
[426448047,1782405521000,-500.0,0.00037321,120]
[426448042,1782405521000,-175.08771185,0.00037321,120]
[426448043,1782405521000,-151.0,0.00037321,120]
[426448057,1782405521000,-500.0,0.00037321,120]
[426448041,1782405521000,-500.0,0.00037321,120]
[426448046,1782405521000,-500.0,0.00037321,120]
[426448045,1782405521000,-500.0,0.00037321,120]
[426448044,1782405521000,-150.20864874,0.00037321,120]
[426448067,1782405522000,-500.0,0.00037321,120]
[426448072,1782405522000,-500.0,0.00037321,120]
[426448075,1782405522000,-500.0,0.00037321,120]
[426448073,1782405522000,-500.0,0.00037321,120]
[426448071,1782405522000,-503.58553031,0.00037321,120]
[426448070,1782405522000,-422.999999,0.00037321,120]
[426448069,1782405522000,-643.63506779,0.00037321,120]
[426448065,1782405522000,-500.0,0.00037321,120]
[426448058,1782405522000,-500.0,0.00037321,120]
[426448066,1782405522000,-500.0,0.00037321,120]
[426448063,1782405522000,-385.60995089,0.00037321,120]
[426448064,1782405522000,-150.43435155,0.00037321,120]
[426448062,1782405522000,-500.0,0.00037321,120]
[426448061,1782405522000,-500.0,0.00037321,120]
[426448059,1782405522000,-500.0,0.00037321,120]
[426448060,1782405522000,-500.0,0.00037321,120]
[426448068,1782405522000,-497.99895609,0.00037321,120]
[426448074,1782405522000,-500.0,0.00037321,120]
[426448078,1782405522000,-500.0,0.00037321,120]
[426448079,1782405522000,-500.0,0.00037321,120]
[426448077,1782405522000,-500.0,0.00037321,120]
[426448094,1782405522000,-155.00321255,0.00037321,120]
[426448093,1782405522000,-175.8865838,0.00037321,120]
[426448091,1782405522000,-500.0,0.00037321,120]
[426448090,1782405522000,-500.0,0.00037321,120]
[426448088,1782405522000,-500.0,0.00037321,120]
[426448089,1782405522000,-500.0,0.00037321,120]
[426448086,1782405522000,-500.0,0.00037321,120]
[426448092,1782405522000,-364.83934687,0.00037321,120]
[426448084,1782405522000,-500.0,0.00037321,120]
[426448085,1782405522000,-645.0,0.00037321,120]
[426448082,1782405522000,-500.0,0.00037321,120]
[426448083,1782405522000,-500.0,0.00037321,120]
[426448080,1782405522000,-500.0,0.00037321,120]
[426448081,1782405522000,-500.0,0.00037321,120]
[426448076,1782405522000,-552.73078957,0.00037321,120]
[426448087,1782405522000,-500.0,0.00037321,120]
[426448109,1782405523000,-634.2661618,0.00037321,120]
[426448108,1782405523000,-501.87046222,0.00037321,120]
[426448107,1782405523000,-500.0,0.00037321,120]
[426448106,1782405523000,-500.0,0.00037321,120]
[426448105,1782405523000,-500.0,0.00037321,120]
[426448104,1782405523000,-500.0,0.00037321,120]
[426448103,1782405523000,-500.0,0.00037321,120]
[426448100,1782405523000,-502.91006363,0.00037321,120]
[426448102,1782405523000,-600.0,0.00037321,120]
[426448098,1782405523000,-500.0,0.00037321,120]
[426448099,1782405523000,-512.49723099,0.00037321,120]
[426448097,1782405523000,-234.67352597,0.00037321,120]
[426448095,1782405523000,-500.0,0.00037321,120]
[426448096,1782405523000,-279.67625624,0.00037321,120]
[426448110,1782405523000,-1000000.0,0.00037321,120]
[426448112,1782405523000,-181.24355342,0.00037321,120]
[426448101,1782405523000,-163.30598373,0.00037321,120]
[426448113,1782405523000,-197.0394,0.00037321,120]
[426448111,1782405523000,-774.00924557,0.00037321,120]
[426448128,1782405523000,-282.18216607,0.00037321,120]
[426448129,1782405523000,-226.03843528,0.00037321,120]
[426448127,1782405523000,-500.0,0.00037321,120]
[426448126,1782405523000,-500.0,0.00037321,120]
[426448124,1782405523000,-500.0,0.00037321,120]
[426448122,1782405523000,-500.0,0.00037321,120]
[426448125,1782405523000,-500.0,0.00037321,120]
[426448123,1782405523000,-500.0,0.00037321,120]
[426448121,1782405523000,-500.0,0.00037321,120]
[426448120,1782405523000,-500.0,0.00037321,120]
[426448118,1782405523000,-344.90675,0.00037321,120]
[426448119,1782405523000,-500.0,0.00037321,120]
[426448117,1782405523000,-228.88443541,0.00037321,120]
[426448115,1782405523000,-156.36892236,0.00037321,120]
[426448116,1782405523000,-176.0963236,0.00037321,120]
[426448114,1782405523000,-160.9422502,0.00037321,120]
[426448131,1782405524000,-1000000.0,0.00037321,120]
[426448130,1782405524000,-606.80920202,0.00037321,120]
[426448134,1782405524000,-926806.41359664,0.00037321,120]
[426448132,1782405524000,-1000000.0,0.00037321,120]
[426448133,1782405524000,-1000000.0,0.00037321,120]
[426448147,1782405740000,-254.77713161,0.00037321,120]
[426448136,1782405740000,-1000000.0,0.00037321,120]
[426448135,1782405740000,-73193.58640336,0.00037321,120]
[426448137,1782405740000,-997998.99,0.00037321,120]
[426448139,1782405740000,-406.78,0.00037321,120]
[426448138,1782405740000,-250.158481,0.00037321,120]
[426448141,1782405740000,-500.0,0.00037321,120]
[426448140,1782405740000,-614.0,0.00037321,120]
[426448143,1782405740000,-500.0,0.00037321,120]
[426448142,1782405740000,-500.0,0.00037321,120]
[426448145,1782405740000,-500.0,0.00037321,120]
[426448144,1782405740000,-500.0,0.00037321,120]
[426448146,1782405740000,-500.0,0.00037321,120]
[426448149,1782405740000,-3555.0,0.00037321,120]
[426448150,1782405740000,-3555.0,0.00037321,120]
[426448148,1782405740000,-4000.0,0.00037321,120]
[426448161,1782405740000,-3555.0,0.00037321,120]
[426448160,1782405740000,-3555.0,0.00037321,120]
[426448162,1782405740000,-3555.0,0.00037321,120]
[426448159,1782405740000,-3555.0,0.00037321,120]
[426448157,1782405740000,-3555.0,0.00037321,120]
[426448158,1782405740000,-3555.0,0.00037321,120]
[426448155,1782405740000,-3555.0,0.00037321,120]
[426448154,1782405740000,-3555.0,0.00037321,120]
[426448153,1782405740000,-3555.0,0.00037321,120]
[426448151,1782405740000,-3555.0,0.00037321,120]
[426448152,1782405740000,-3555.0,0.00037321,120]
[426448156,1782405740000,-3555.0,0.00037321,120]
[426448177,1782405741000,-587.26679544,0.00037321,120]
[426448175,1782405741000,-500.0,0.00037321,120]
[426448176,1782405741000,-500.0,0.00037321,120]
[426448174,1782405741000,-515.28,0.00037321,120]
[426448173,1782405741000,-500.0,0.00037321,120]
[426448172,1782405741000,-3555.22902003,0.00037321,120]
[426448171,1782405741000,-3555.0,0.00037321,120]
[426448165,1782405741000,-3555.0,0.00037321,120]
[426448169,1782405741000,-3555.0,0.00037321,120]
[426448167,1782405741000,-3555.0,0.00037321,120]
[426448166,1782405741000,-3555.0,0.00037321,120]